fUST/lending_fUST_20251115
["ID","MTS","AMOUNT","RATE_DAILY","PERIOD"]
[394032314,1763200351719,-557.62350706,0.00055616,120]
[394032315,1763200351728,-165.57329132,0.0005566,120]
[394032316,1763200351737,-2000.0,0.000557,63]
[394032317,1763200351747,-500.0,0.0005589,120]
[394032318,1763200351757,-1000.0,0.00056,120]
[394032319,1763200351766,-200.0,0.00056,120]
[394032320,1763200351775,-1000.0,0.00056,120]
[394032321,1763200351785,-1000.0,0.00056,120]
[394032322,1763200351794,-100000.0,0.00056,120]
[394032323,1763200351804,-159.0,0.00056,120]
[394032324,1763200351813,-4230.02,0.00056,14]
[394032325,1763200351822,-1100.0,0.00056,10]
[394032326,1763200351831,-500.0,0.00056164,120]
[394032327,1763200351841,-1999.980001,0.000562,120]
[394032328,1763200351850,-250.0,0.00056437,30]
[394032329,1763200351859,-250.0,0.00056437,120]
[394032330,1763200351869,-250.0,0.00056437,30]
[394032331,1763200351878,-250.0,0.00056437,120]
[394032332,1763200351888,-254.29074926,0.00056437,30]
[394032333,1763200351898,-151.0,0.00056437,30]
[394032334,1763200351908,-151.0,0.00056437,30]
[394032335,1763200351918,-151.0,0.00056437,120]
[394032336,1763200351928,-156.587,0.00056437,120]
[394032337,1763200351937,-250.0,0.00056437,30]
[394032338,1763200351946,-250.0,0.00056437,120]
[394032339,1763200351956,-151.0,0.00056437,30]
[394032340,1763200351965,-151.0,0.00056437,120]
[394032341,1763200351974,-414.0,0.00056437,30]
[394032342,1763200351984,-429.318,0.00056437,120]
[394032343,1763200351993,-500.0,0.00056438,120]
[394032344,1763200352002,-500.0,0.00056438,30]
[394032345,1763200352011,-500.0,0.00056438,30]
[394032346,1763200352019,-500.0,0.00056438,30]
[394032347,1763200352028,-500.0,0.00056438,30]
[394032348,1763200352038,-500.0,0.00056438,30]
[394032349,1763200352048,-500.0,0.00056438,30]
[394032350,1763200352057,-500.0,0.00056438,30]
[394032351,1763200352066,-500.0,0.00056438,30]
[394032352,1763200352076,-501.55511768,0.00056438,30]
[394032353,1763200352085,-500.0,0.00056438,30]
[394032354,1763200352094,-500.0,0.00056438,30]
[394032355,1763200352103,-500.0,0.00056438,30]
[394032356,1763200352112,-500.0,0.00056438,30]
[394032357,1763200352122,-500.0,0.00056438,30]
[394032358,1763200352131,-500.0,0.00056438,30]
[394032359,1763200352140,-501.56789866,0.00056438,30]
[394032360,1763200352150,-457.76,0.00056438,39]
[394032361,1763200352159,-276884.0977,0.0005644,120]
[394032362,1763200352168,-1000.0,0.00056479,120]
[394032363,1763200352177,-791.0,0.00056479,120]
[394032364,1763200352187,-500.0,0.000565,120]
[394032365,1763200352196,-1000.0,0.000565,120]
[394032366,1763200352205,-5000.0,0.00056548,30]
[394032367,1763200352214,-390.0,0.000566,120]
[394032368,1763200352227,-1015.0,0.000567,65]
[394032369,1763200352236,-500.0,0.00056712,120]
[394032370,1763200352245,-500.0,0.00056712,120]
[394032371,1763200352253,-1000.0,0.00057,120]
[394032372,1763200352263,-200.0,0.00057,120]
[394032373,1763200352272,-1000.0,0.00057,120]
[394032374,1763200352281,-1898.92525887,0.00057,120]
[394032375,1763200352290,-1000.0,0.00057,120]
[394032376,1763200352301,-395.2109804,0.00057041,60]
[394032377,1763200352310,-395.2109804,0.00057041,60]
[394032378,1763200352319,-395.2109804,0.00057041,60]
[394032379,1763200352329,-790.4219608,0.00057041,60]
[394032380,1763200352338,-395.2109804,0.00057041,60]
[394032381,1763200352348,-395.2109804,0.00057041,60]
[394032382,1763200352357,-395.2109804,0.00057041,60]
[394032383,1763200352366,-395.2109804,0.00057041,60]
[394032384,1763200352375,-395.2109804,0.00057041,60]
[394032385,1763200352384,-500.5371415,0.00057041,60]
[394032386,1763200352394,-395.2109804,0.00057041,60]
[394032387,1763200352404,-593.4565077,0.00057315,60]
[394032388,1763200352415,-500.0,0.000575,120]
[394032389,1763200352425,-1000.0,0.000575,120]
[394032390,1763200352435,-999.0,0.00057534,120]
[394032391,1763200352444,-200.0,0.00057616,120]
[394032392,1763200352454,-211.0,0.000577,120]
[394032393,1763200352463,-200.0,0.0005775,120]
[394032394,1763200352474,-200.0,0.0005775,120]
[394032395,1763200352483,-500.0,0.0005775,120]
[394032396,1763200352492,-500.0,0.00057808,120]
[394032397,1763200352501,-457.76,0.00057808,40]
[394032398,1763200352510,-1000.0,0.00058,120]
[394032399,1763200352520,-1000.0,0.00058,120]
[394032400,1763200352529,-1000.0,0.00058,120]
[394032401,1763200352539,-100000.0,0.00058,120]
[394032402,1763200352549,-5000.0,0.000582,120]
[394032403,1763200352558,-500.0,0.000585,120]
[394032404,1763200352568,-1000.0,0.000585,120]
[394032405,1763200352578,-523.89569335,0.00058577,120]
[394032406,1763200352587,-200.0,0.00058796,120]
[394032407,1763200352596,-10919.35601289,0.00058875,60]
[394032408,1763200352605,-500.0,0.00058904,120]
[394032409,1763200352615,-607.3158852,0.00058959,60]
[394032410,1763200352624,-717.2394069,0.00058959,60]
[394032411,1763200352634,-600.5742284,0.00058959,60]
[394032412,1763200352643,-300.3678215,0.00058959,60]
[394032413,1763200352653,-300.3678215,0.00058959,60]
[394032414,1763200352663,-300.3678215,0.00058959,60]
[394032415,1763200352673,-2818.95955413,0.00059,120]
[394032416,1763200352682,-1000.0,0.00059,120]
[394032417,1763200352691,-200.0,0.00059,120]
[394032418,1763200352701,-1000.0,0.00059,120]
[394032419,1763200352710,-3000.0,0.00059,120]
[394032420,1763200352719,-211.0,0.00059,120]
[394032421,1763200352729,-225.090246,0.0005912,2]
[394032422,1763200352738,-457.76,0.00059178,41]
[394032423,1763200352747,-166130.4586,0.000592,120]
[394032424,1763200352757,-421.31,0.00059419,30]
[394032425,1763200352766,-244.89,0.00059438,120]
[394032426,1763200352775,-500.0,0.000595,120]
[394032427,1763200352784,-300.3678215,0.00059781,60]
[394032428,1763200352794,-600.8842212,0.00059781,60]
[394032429,1763200352803,-2227.44385325,0.000599,120]
[394032430,1763200352813,-1000.0,0.00059999,120]
[394032431,1763200352822,-500.0,0.0006,120]
[394032432,1763200352831,-664.43445287,0.0006,120]
[394032433,1763200352841,-7117.99510061,0.0006,120]
[394032434,1763200352850,-200.0,0.0006,120]
[394032435,1763200352859,-313.0,0.0006,120]
[394032436,1763200352868,-426.9,0.0006,120]
[394032437,1763200352877,-1000.0,0.0006,120]
[394032438,1763200352886,-10000.0,0.0006,120]
[394032439,1763200352896,-353.0,0.0006,20]
[394032440,1763200352905,-13595.61585316,0.0006,120]
[394032441,1763200352914,-3000.0,0.0006,120]
[394032442,1763200352923,-20000.0,0.0006,120]
[394032443,1763200352931,-100000.0,0.0006,120]
[394032444,1763200352940,-1998.21385857,0.0006,120]
[394032445,1763200352949,-999.0,0.00060273,120]
[394032446,1763200352958,-500.0,0.000605,120]
[394032447,1763200352968,-457.76,0.00060547,42]
[394032448,1763200352977,-200.0,0.000607,120]
[394032449,1763200352986,-200.0,0.000607,120]
[394032450,1763200352994,-200.0,0.000607,120]
[394032451,1763200353003,-2000.0,0.00061,120]
[394032452,1763200353012,-200.0,0.00061,120]
[394032453,1763200353022,-3000.0,0.00061,120]
[394032454,1763200353031,-500.0,0.00061096,120]
[394032455,1763200353039,-159.0,0.000612,120]
[394032456,1763200353059,-500.0,0.000615,120]
[394032457,1763200353077,-200.0,0.000618,120]
[394032458,1763200353089,-200.0,0.000618,120]
[394032459,1763200353098,-457.76,0.00061917,43]
[394032460,1763200353107,-3000.0,0.00062,120]
[394032461,1763200353116,-2008.0,0.00062,120]
[394032462,1763200353125,-556.4610565,0.00062192,120]
[394032463,1763200353134,-5000.0,0.000622,120]
[394032464,1763200353143,-500.0,0.000625,120]
[394032465,1763200353152,-205.93661,0.000629,120]
[394032466,1763200353161,-200.0,0.000629,120]
[394032467,1763200353170,-20387.14860145,0.00063,120]
[394032468,1763200353179,-200.0,0.00063,120]
[394032469,1763200353188,-3000.0,0.00063,120]
[394032470,1763200353197,-999.0,0.00063013,120]
[394032471,1763200353207,-457.76,0.00063287,44]
[394032472,1763200353216,-493.51475845,0.000635,120]
[394032473,1763200353496,-6.48524155,0.000635,120]
[394032474,1763200353506,-367.1391727,0.0006389,60]
[394032475,1763200353515,-2000.0,0.00064,120]
[394032476,1763200353523,-200.0,0.00064,120]
[394032477,1763200353532,-200.0,0.00064,120]
[394032478,1763200353542,-3000.0,0.00064,120]
[394032479,1763200353552,-5947.77053347,0.0006428,24]
[394032480,1763200353562,-3347.09813655,0.00064308,120]
[394032481,1763200353573,-565.99163167,0.00064308,120]
[394032482,1763200353588,-625.0,0.00052055,120]
[394032483,1763200353597,-1212.56715938,0.00064308,120]
[394032484,1763200353606,-500.0,0.000645,120]
[394032485,1763200353615,-494.197863,0.00064574,120]
[394032486,1763200353624,-5059.71293044,0.00064574,120]
[394032487,1763200353633,-457.76,0.00064657,45]
[394032488,1763200353642,-191.2434577,0.00064712,60]
[394032489,1763200353651,-164.2628813,0.00064712,60]
[394032490,1763200353660,-164.2628813,0.00064712,60]
[394032491,1763200353670,-10000.0,0.00065,120]
[394032492,1763200353679,-200.0,0.00065,120]
[394032493,1763200353688,-3000.000167,0.00065,120]
[394032494,1763200353697,-1998.21385857,0.00065,120]
[394032495,1763200353706,-500.0,0.000655,120]
[394032496,1763200353715,-164.2237678,0.00065534,60]
[394032497,1763200353723,-225.090246,0.00065609,2]
[394032498,1763200353732,-999.0,0.00065753,120]
[394032499,1763200353742,-457.76,0.00066027,46]
[394032500,1763200353751,-159.0,0.000665,120]
[394032501,1763200353760,-2000.0,0.00067,120]
[394032502,1763200353769,-195.25,0.00067,120]
[394032503,1763200353778,-200.0,0.00067,120]
[394032504,1763200353787,-2492.4864191,0.00067055,30]
[394032505,1763200353799,-2507.5135809,0.00067055,30]
[394032506,1763200353808,-2311.48,0.00067055,30]
[394032507,1763200353818,-457.76,0.00067397,47]
[394032508,1763200353827,-10113.18588842,0.00067839,120]
[394032509,1763201041628,1372.03,5e-05,2]
[394032510,1763201041936,1372.03,5.1e-05,2]
[394032511,1763201042234,1372.03,5.3e-05,2]
[394032512,1763201042506,1372.03,5.4e-05,2]
[394032513,1763201042810,1372.03,5.6e-05,2]
[394032514,1763201043088,1372.03,5.7e-05,2]
[394032515,1763201044047,1372.03,5.9e-05,2]
[394032516,1763201044417,395.8,6e-05,2]
[394032517,1763201044442,976.23,6e-05,2]
[394032518,1763201044779,1372.03,6.1e-05,2]
[394032519,1763201045115,1372.03,6.3e-05,2]
[394032520,1763201045598,1372.03,6.4e-05,2]
[394032521,1763201045964,1372.03,6.6e-05,2]
[394032522,1763201046336,1372.03,6.7e-05,2]
[394032523,1763201046631,1372.03,6.9e-05,2]
[394032524,1763201046920,1372.03,7e-05,2]
[394032525,1763201047227,1372.03,7.1e-05,2]
[394032526,1763201047576,1372.03,7.3e-05,2]
[394032527,1763201047855,395.8,7.4e-05,2]
[394032528,1763201047877,976.23,7.4e-05,2]
[394032529,1763201048137,1372.03,7.6e-05,2]
[394032530,1763201048413,1372.03,7.7e-05,2]
[394032531,1763201048701,1372.03,7.9e-05,2]
[394032532,1763201048992,1372.03,8e-05,2]
[394032533,1763201049281,1372.03,8.1e-05,2]
[394032534,1763201049914,1372.03,8.3e-05,2]
[394032535,1763201050032,791.6,8.4e-05,2]
[394032536,1763201050057,580.43,8.4e-05,2]
[394032537,1763201050317,1372.03,8.6e-05,2]
[394032538,1763201050614,1372.03,8.7e-05,2]
[394032539,1763201050897,1372.03,8.9e-05,2]
[394032540,1763201051324,1372.03,9e-05,2]
[394032541,1763201051613,1372.03,9.1e-05,2]
[394032542,1763201051948,1372.03,9.3e-05,2]
[394032543,1763201052224,1187.4,9.4e-05,2]
[394032544,1763201052246,184.63,9.4e-05,2]
[394032545,1763201052575,1372.03,9.6e-05,2]
[394032546,1763201052871,1372.03,9.7e-05,2]
[394032547,1763201053139,1372.03,9.9e-05,2]
[394032548,1763201053435,1372.03,0.0001,2]
[394032549,1763201053738,1372.03,0.000101,2]
[394032550,1763201054162,1372.03,0.000103,2]
[394032551,1763201054442,1372.03,0.000104,2]
[394032552,1763201054829,211.17,0.000106,2]
[394032553,1763201054853,1160.86,0.000106,2]
[394032554,1763201055126,1372.03,0.000107,2]
[394032555,1763201056083,1372.03,0.000109,2]
[394032556,1763201056394,1372.03,0.00011,2]
[394032557,1763201056690,1372.03,0.000111,2]
[394032558,1763201056992,1372.03,0.000113,2]
[394032559,1763201057289,1372.03,0.000114,2]
[394032560,1763201057673,606.97,0.000116,2]
[394032561,1763201057695,765.06,0.000116,2]
[394032562,1763201057958,1372.03,0.000117,2]
[394032563,1763201058234,1372.03,0.000119,2]
[394032564,1763201058526,1372.03,0.00012,2]
[394032565,1763201101600,240.65,5e-05,2]
[394032566,1763201101937,240.65,5.1e-05,2]
[394032567,1763201102205,240.65,5.3e-05,2]
[394032568,1763201102521,240.65,5.4e-05,2]
[394032569,1763201102902,240.65,5.6e-05,2]
[394032570,1763201103146,240.65,5.7e-05,2]
[394032571,1763201103421,240.65,5.9e-05,2]
[394032572,1763201103718,240.65,6e-05,2]
[394032573,1763201104084,240.65,6.1e-05,2]
[394032574,1763201104466,240.65,6.3e-05,2]
[394032575,1763201104781,240.65,6.4e-05,2]
[394032576,1763201105072,240.65,6.6e-05,2]
[394032577,1763201105346,240.65,6.7e-05,2]
[394032578,1763201105633,240.65,6.9e-05,2]
[394032579,1763201105912,240.65,7e-05,2]
[394032580,1763201106206,240.65,7.1e-05,2]
[394032581,1763201106507,240.65,7.3e-05,2]
[394032582,1763201106791,240.65,7.4e-05,2]
[394032583,1763201107145,240.65,7.6e-05,2]
[394032584,1763201107448,240.65,7.7e-05,2]
[394032585,1763201107731,240.65,7.9e-05,2]
[394032586,1763201108036,65.21,8e-05,2]
[394032587,1763201108063,175.44,8e-05,2]
[394032588,1763201108328,240.65,8.1e-05,2]
[394032589,1763201108634,240.65,8.3e-05,2]
[394032590,1763201109267,240.65,8.4e-05,2]
[394032591,1763201109564,240.65,8.6e-05,2]
[394032592,1763201109893,240.65,8.7e-05,2]
[394032593,1763201110224,240.65,8.9e-05,2]
[394032594,1763201110496,240.65,9e-05,2]
[394032595,1763201110783,240.65,9.1e-05,2]
[394032596,1763201111116,240.65,9.3e-05,2]
[394032597,1763201111495,240.65,9.4e-05,2]
[394032598,1763201111839,240.65,9.6e-05,2]
[394032599,1763201112127,240.65,9.7e-05,2]
[394032600,1763201112404,240.65,9.9e-05,2]
[394032601,1763201112735,240.65,0.0001,2]
[394032602,1763201113059,240.65,0.000101,2]
[394032603,1763201113715,240.65,0.000103,2]
[394032604,1763201114024,240.65,0.000104,2]
[394032605,1763201114637,240.65,0.000106,2]
[394032606,1763201115064,240.65,0.000107,2]
[394032607,1763201115429,240.65,0.000109,2]
[394032608,1763201115919,240.65,0.00011,2]
[394032609,1763201116089,240.65,0.000111,2]
[394032610,1763201116403,240.65,0.000113,2]
[394032611,1763201116694,240.65,0.000114,2]
[394032612,1763201116995,240.65,0.000116,2]
[394032613,1763201117288,240.65,0.000117,2]
[394032614,1763201117558,240.65,0.000119,2]
[394032615,1763201162057,240.61,5e-05,2]
[394032616,1763201361790,-500.0,0.00025205,2]
[394032617,1763201361810,-174.49450228,0.00025205,2]
[394032618,1763201361830,-800.0,0.000253,2]
[394032619,1763201361853,-500.0,0.00026355,2]
[394032620,1763201361874,-398.38,0.00026988,2]
[394032621,1763201405302,152.49811372,0.00026865,18]
[394032622,1763201429451,150.0,0.0002589,2]
[394032647,1763201437531,-150.0,0.0002789,2]
[394032648,1763201437540,-628.58777307,0.00034864,2]
[394032649,1763201437549,-152.0,0.00035,120]
[394032650,1763201437559,-168.0,0.00035061,2]
[394032651,1763201437568,-122.71370579,0.00036398,2]
[394032652,1763201438367,-412.55761794,0.00036398,2]
[394032653,1763201438378,-152.0,0.000367,120]
[394032654,1763201438387,-150.206,0.00037878,2]
[394032655,1763201438398,-1131.45799153,0.00037891,2]
[394032656,1763201438407,-152.0,0.000385,120]
[394032657,1763201438417,-400.0,0.00039599,5]
[394032658,1763201438427,-241.4347467,0.000396,120]
[394032659,1763201438436,-219.66097264,0.000396,120]
[394032660,1763201438452,-185.97451897,0.000396,120]
[394032661,1763201438466,-152.0,0.000402,120]
[394032662,1763201438475,-300.0,0.00040391,90]
[394032663,1763201438485,-300.0,0.00040391,90]
[394032664,1763201438494,-300.0,0.00040391,90]
[394032665,1763201438504,-300.0,0.00040391,90]
[394032666,1763201438514,-300.0,0.00040391,90]
[394032667,1763201438524,-300.0,0.00040391,90]
[394032668,1763201438534,-375.14212601,0.0004076,2]
[394032669,1763201438544,-219.66097264,0.000408,120]
[394032670,1763201438554,-150.0,0.00040878,2]
[394032671,1763201438566,-2011.48087382,0.00040917,2]
[394032672,1763201438576,-963.48838271,0.00040938,2]
[394032673,1763201438586,-150.0,0.00041079,2]
[394032674,1763201438596,-152.0,0.00042,120]
[394032675,1763201438607,-560.0,0.00042257,5]
[394032676,1763201438617,-152.0,0.000437,120]
[394032677,1763201438828,-354.96721303,0.00043723,4]
[394032678,1763201438839,-150.0,0.00044813,2]
[394032679,1763201438849,-783.0,0.00045093,5]
[394032680,1763201438861,-152.0,0.000455,120]
[394032681,1763201438871,-790.3023657,0.0004579,30]
[394032682,1763201438882,-152.0,0.000472,120]
[394032683,1763201438892,-151.0,0.000479,27]
[394032684,1763201438902,-151.0,0.000479,26]
[394032685,1763201438912,-151.0,0.000479,28]
[394032686,1763201438922,-151.0,0.000479,30]
[394032687,1763201438933,-180.169,0.000479,81]
[394032688,1763201438943,-517.0,0.00048119,5]
[394032689,1763201438954,-150.0,0.00048489,2]
[394032690,1763201438964,-152.0,0.00049,120]
[394032691,1763201438978,-500.0,0.000499,18]
[394032692,1763201438989,-152.0,0.000507,120]
[394032693,1763201439000,-150.0,0.00051,85]
[394032694,1763201439010,-160.07778063,0.00052055,120]
[394032695,1763201439019,-150.0,0.00052282,2]
[394032696,1763201439028,-152.0,0.000525,120]
[394032697,1763201439038,-152.0,0.000543,120]
[394032698,1763201439047,-185.89349547,0.00054795,120]
[394032699,1763201439057,-185.89349547,0.00054795,120]
[394032700,1763201439067,-185.89349547,0.00054795,120]
[394032701,1763201439077,-185.89,0.00054795,120]
[394032702,1763201439087,-19.98645262,0.00055067,120]
[394032703,1763201439106,-308.97747544,0.00055067,120]
[394032704,1763201439119,-207.30607194,0.00055067,120]
[394032705,1763201439129,-176.36093359,0.00055216,4]
[394032706,1763201439140,-536.27,0.00055341,120]
[394032707,1763201439149,-536.27,0.00055615,120]
[394032708,1763201439160,-1418.44898326,0.00055774,4]
[394032709,1763201439170,-524.65326841,0.00055774,4]
[394032723,1763201444631,-339.32051464,0.00030876,2]
[394032724,1763201444641,-339.32051464,0.00034542,2]
[394032725,1763201444653,-339.32051464,0.00038208,2]
[394032726,1763201444663,-418.747,0.00039928,2]
[394032727,1763201444675,-339.32051464,0.00041874,2]
[394032728,1763201444685,-413.0,0.00042928,2]
[394032729,1763201444695,-339.65983516,0.0004554,2]
[394032730,1763201444707,-413.0,0.00045928,2]
[394032731,1763201444719,-413.0,0.00048928,2]
[394032732,1763201444729,-413.0,0.00051928,120]
[394032733,1763201444740,-413.0,0.00054928,120]
[394032734,1763201444754,-179.94011828,0.00055774,4]
[394032735,1763201444765,-536.27,0.00055889,120]
[394032736,1763201444776,-152.0,0.00056,120]
[394032737,1763201444786,-49.68900859,0.00056016,2]
[394032738,1763201445350,-4.84050374,0.00047253,30]
[394032751,1763201446722,-402.58650836,0.00047253,30]
[394032752,1763201446732,-100.31099141,0.00056016,2]
[394032753,1763201446742,-500.0,0.00056162,120]
[394032754,1763201446751,-536.27,0.00056163,120]
[394032755,1763201446760,-186.35001212,0.00056328,30]
[394032765,1763201462099,212.92519284,0.00026282,2]
[394032766,1763201628047,-283.94755806,0.00026282,2]
[394032767,1763201653748,3198.28713991,0.00027,2]
[394032769,1763201738196,313.197118,0.00013699,2]
[394032770,1763201738414,313.197118,0.00020187,2]
[394032771,1763201738636,313.197118,0.00026676,2]
[394032772,1763201742498,150.0,0.0002589,2]
[394032774,1763202005016,906.4778728,0.00032877,120]
[394032775,1763202056680,150.0,0.0002589,2]
[394032786,1763202369710,150.0,0.0002589,2]
[394032788,1763202494528,189.4245289,0.00026282,2]
[394032789,1763202505427,251.57585278,0.0002,21]
[394032790,1763202506074,1404.82567943,0.00022,5]
[394032791,1763202511034,1650.96579909,0.00026,30]
[394032793,1763202516841,5757.66963202,0.00025,2]
[394032831,1763202632640,-177.0,0.0002789,2]
[394032832,1763202632649,-196.11910904,0.000279,2]
[394032833,1763202632658,-144.65080203,0.00028,5]
[394032834,1763202632669,-383.44308656,0.00028,5]
[394032835,1763202632678,-813.79598492,0.00028,2]
[394032836,1763202632687,-164.08794523,0.000284,2]
[394032837,1763202632697,-553.32,0.0002849,10]
[394032838,1763202632706,-320.21,0.0002849,10]
[394032839,1763202632714,-300.0,0.00028498,2]
[394032840,1763202632723,-300.0,0.00028498,2]
[394032841,1763202632732,-300.0,0.00028498,2]
[394032842,1763202632741,-300.0,0.00028498,2]
[394032843,1763202632750,-219.98254272,0.00028499,2]
[394032844,1763202632759,-538.89391198,0.00028499,2]
[394032845,1763202632768,-401.91177984,0.00028499,2]
[394032846,1763202632778,-500.0,0.00028499,2]
[394032847,1763202632786,-500.0,0.00028499,2]
[394032848,1763202632795,-500.0,0.00028499,2]
[394032849,1763202632804,-500.0,0.00028499,2]
[394032850,1763202632813,-500.0,0.00028499,2]
[394032851,1763202632822,-500.0,0.00028499,2]
[394032852,1763202632830,-500.0,0.00028499,2]
[394032853,1763202632839,-500.0,0.00028499,2]
[394032854,1763202632848,-500.0,0.00028499,2]
[394032855,1763202632857,-500.0,0.00028499,2]
[394032856,1763202632865,-500.0,0.00028499,2]
[394032857,1763202632874,-500.0,0.00028499,2]
[394032858,1763202632883,-500.0,0.00028499,2]
[394032859,1763202632892,-363.67106379,0.00028499,2]
[394032860,1763202632901,-500.0,0.00028499,2]
[394032861,1763202632910,-500.0,0.00028499,2]
[394032862,1763202632919,-500.0,0.00028499,2]
[394032863,1763202632928,-500.0,0.00028499,2]
[394032864,1763202632941,-330.66584538,0.00028499,2]
[394032865,1763202632950,-500.0,0.00028499,2]
[394032866,1763202632959,-524.65284913,0.00028499,2]
[394032867,1763202632969,-212.38618796,0.00028499,2]
[394032868,1763202632978,-45890.51308225,0.000285,7]
[394032869,1763202632991,-2119.9520842,0.000285,7]
[394032900,1763202638562,-407.73,0.0002849,10]
[394032901,1763202638571,-146705.98363125,0.000285,7]
[394032902,1763202638583,-164.05,0.000285,7]
[394032903,1763202638593,-4248.4,0.000285,7]
[394032904,1763202638602,-316.5470189,0.00029245,5]
[394032905,1763202638611,-500.0,0.00029245,5]
[394032906,1763202638621,-500.0,0.00029245,5]
[394032907,1763202638630,-500.0,0.00029245,5]
[394032908,1763202638638,-503.71198577,0.00029245,5]
[394032909,1763202638647,-500.0,0.00029245,5]
[394032910,1763202638656,-500.0,0.00029245,5]
[394032911,1763202638665,-500.0,0.00029482,5]
[394032912,1763202638675,-519.88697988,0.00029482,3]
[394032913,1763202638684,-500.0,0.00029482,5]
[394032914,1763202638693,-505.89614439,0.00029482,5]
[394032915,1763202638702,-150.0,0.00029482,5]
[394032916,1763202638711,-500.0,0.00029482,5]
[394032917,1763202638720,-500.0,0.00029482,5]
[394032918,1763202638730,-300.0,0.00029619,5]
[394032919,1763202638739,-450.0,0.00029756,5]
[394032920,1763202638749,-510.84113777,0.00029756,5]
[394032921,1763202638759,-200.19530126,0.0002979,2]
[394032922,1763202638769,-1000.0,0.00029793,5]
[394032923,1763202638778,-1000.0,0.00029793,5]
[394032924,1763202638788,-1000.0,0.00029793,5]
[394032925,1763202638797,-504.034575,0.00029793,5]
[394032926,1763202638807,-204.0,0.0002989,2]
[394032927,1763202638816,-534.39878608,0.00029893,5]
[394032928,1763202638827,-253.18481163,0.00029973,37]
[394032929,1763202638839,-418.5017434,0.0003,2]
[394032930,1763202638848,-502.52651368,0.0003003,5]
[394032931,1763202638859,-587.62383257,0.0003003,5]
[394032932,1763202638868,-536.74565487,0.0003003,5]
[394032933,1763202638879,-291.69857279,0.00030697,2]
[394032934,1763202638888,-271.55253996,0.00030697,2]
[394032935,1763202638899,-175.45,0.000307,14]
[394032936,1763202638908,-420.0,0.00030762,2]
[394032937,1763202638918,-163.855469,0.00030843,2]
[394032938,1763202638928,-191.03442194,0.00030843,2]
[394032939,1763202638938,-271.55253996,0.00030882,9]
[394032940,1763202638951,-160.0,0.00030944,2]
[394032941,1763202638959,-271.55253996,0.00031066,17]
[394032942,1763202638968,-271.55253996,0.00031251,25]
[394032943,1763202638978,-161.970873,0.00031396,20]
[394032944,1763202638988,-271.55253996,0.00031435,32]
[394032945,1763202638998,-260.0,0.00031492,2]
[394032946,1763202639007,-271.55253996,0.0003162,40]
[394032947,1763202639016,-271.55253996,0.00031805,48]
[394032948,1763202639027,-231.0,0.0003189,2]
[394032949,1763202639037,-271.55253996,0.00031989,56]
[394032950,1763202639047,-360.0,0.0003204,2]
[394032951,1763202639057,-180.0,0.00032164,51]
[394032952,1763202639066,-271.55253996,0.00032174,63]